bitfinex/quotes_SOLUSD_20250308
["timestamp","ask_amount","ask_price","bid_price","bid_amount"]
[1741400339996,0.03,140.18,140.17,13.38037133]
[1741400340890,0.03,140.18,140.16,20.16037133]
[1741400342719,0.03,140.18,140.17,13.38037133]
[1741400343691,0.03,140.18,140.16,20.16037133]
[1741400343892,0.03,140.18,140.16,6.78]
[1741400344510,0.03,140.18,140.16,20.16037133]
[1741400345227,0.03,140.18,140.13,0.033]
[1741400345519,0.03,140.18,140.14,13.38037133]
[1741400345900,0.03,140.18,140.15,13.38037133]
[1741400346215,0.03,140.18,140.16,13.38037133]
[1741400346420,0.03,140.18,140.15,13.38037133]
[1741400347118,0.03,140.18,140.16,0.033]
[1741400349823,7.1636,140.18,140.16,0.033]
[1741400350030,13.38037133,140.17,140.16,0.033]
[1741400351303,1.6616,140.15,140.13,0.033]
[1741400351513,13.38037133,140.14,140.13,0.033]
[1741400351717,15.04197133,140.15,140.13,0.033]
[1741400351938,22.17727133,140.15,140.13,0.033]
[1741400352231,1.6616,140.15,140.13,0.033]
[1741400354518,1.6916,140.18,140.13,0.033]
[1741400354716,13.38037133,140.17,140.13,0.033]
[1741400355121,13.38037133,140.16,140.13,0.033]
[1741400355724,13.38037133,140.17,140.13,0.033]
[1741400356437,20.51457133,140.17,140.13,0.033]
[1741400356734,13.38037133,140.16,140.13,0.033]
[1741400357421,20.51457133,140.17,140.13,0.033]
[1741400359726,20.54457133,140.17,140.13,0.033]
[1741400360015,13.38037133,140.14,140.13,0.033]
[1741400361019,13.38037133,140.15,140.13,0.033]
[1741400361356,20.54457133,140.17,140.13,0.033]
[1741400361531,13.38037133,140.16,140.13,0.033]
[1741400361736,20.54457133,140.17,140.13,0.033]
[1741400362539,0.03,140.17,140.13,13.41337133]
[1741400362945,0.03,140.17,140.13,0.033]
[1741400363111,7.1643,140.17,140.13,0.033]
[1741400363314,13.38037133,140.16,140.13,0.033]
[1741400364145,0.03,140.17,140.13,0.033]
[1741400364451,13.41037133,140.17,140.13,0.033]
[1741400366517,20.54497133,140.17,140.13,0.033]
[1741400366845,13.38037133,140.16,140.13,0.033]
[1741400367950,13.38037133,140.14,140.13,0.033]
[1741400368118,66.90185665,140.14,140.13,0.033]
[1741400368315,89.06,140.16,140.13,0.033]
[1741400368539,13.38037133,140.14,140.13,0.033]
[1741400369644,66.90185665,140.14,140.05,13.38037133]
[1741400369845,13.38037133,140.1,140.04,20.91747133]
[1741400370524,20.51847133,140.1,140.04,20.91747133]
[1741400371249,13.38037133,140.11,140.05,13.38037133]
[1741400371432,20.51707133,140.12,140.06,13.38037133]
[1741400371939,13.38037133,140.14,140.09,13.38037133]
[1741400372141,13.8951,140.16,140.1,13.38037133]
[1741400372345,19.80853711,140.17,140.11,13.38037133]
[1741400372547,13.38037133,140.16,140.1,13.38037133]
[1741400372756,26.05440844,140.17,140.11,13.38037133]
[1741400372938,33.18870844,140.17,140.11,13.38037133]
[1741400373264,26.05440844,140.17,140.11,13.38037133]
[1741400373662,14.91357133,140.17,140.11,13.38037133]
[1741400374174,13.38037133,140.16,140.1,13.38037133]
[1741400374355,8.6675,140.17,140.11,13.38037133]
[1741400374555,22.04787133,140.17,140.11,13.38037133]
[1741400374871,13.38037133,140.16,140.1,13.38037133]
[1741400375250,13.38037133,140.15,140.1,13.38037133]
[1741400375449,13.38037133,140.16,140.1,13.38037133]
[1741400375842,13.38037133,140.16,140.11,13.38037133]
[1741400376448,13.38037133,140.16,140.1,13.38037133]
[1741400376771,0.03,140.17,140.15,13.38037133]
[1741400377563,0.03,140.17,140.14,13.38037133]
[1741400378557,0.03,140.17,140.15,13.38037133]
[1741400379352,0.03,140.17,140.15,20.90766928]
[1741400379771,0.03,140.17,140.16,20.90766928]
[1741400385766,0.03,140.17,140.16,28.04236928]
[1741400386156,0.03,140.17,140.15,7.135]
[1741400386367,0.03,140.17,140.15,20.90766928]
[1741400387073,0.03,140.17,140.14,155.50766928]
[1741400387366,0.03,140.17,140.14,20.90766928]
[1741400388779,0.03,140.17,140.13,20.90766928]
[1741400391660,0.03,140.17,140.11,14.4169]
[1741400391661,0.03,140.17,140.14,20.90766928]
[1741400392278,0.03,140.17,140.15,20.90766928]
[1741400392989,0.03,140.17,140.16,20.90766928]
[1741400394077,0.03,140.17,140.16,28.04236928]
[1741400397387,0.03,140.17,140.16,20.90766928]
[1741400397688,0.03,140.17,140.15,28.04246928]
[1741400398088,0.03,140.17,140.15,20.90766928]
[1741400398305,0.03,140.17,140.14,28.04326928]
[1741400398593,0.03,140.17,140.15,20.90766928]
[1741400399088,0.03,140.17,140.14,28.04326928]
[1741400400591,0.03,140.17,140.13,20.94066928]
[1741400401182,0.03,140.17,140.14,20.90766928]
[1741400401383,0.03,140.17,140.14,13.3833237]
[1741400402895,0.03,140.17,140.16,13.3833237]
[1741400403399,0.03,140.17,140.14,13.3833237]
[1741400403588,0.03,140.17,140.13,20.5523237]
[1741400403892,0.03,140.17,140.14,13.3833237]
[1741400404490,0.03,140.17,140.15,13.3833237]
[1741400404700,0.03,140.17,140.16,13.3833237]
[1741400406175,0.03,140.17,140.14,20.5187237]
[1741400406500,0.03,140.17,140.13,13.4163237]
[1741400407173,0.03,140.17,140.14,13.3833237]
[1741400407399,0.03,140.17,140.15,13.3833237]
[1741400408395,0.03,140.17,140.16,13.3833237]
[1741400408592,0.03,140.17,140.16,20.5180237]
[1741400410802,0.03,140.17,140.16,13.3833237]
[1741400411103,0.03,140.17,140.14,7.1357]
[1741400411309,0.03,140.17,140.14,20.5190237]
[1741400411779,0.03,140.17,140.13,13.4163237]
[1741400411979,0.03,140.17,140.14,13.3833237]
[1741400416299,0.03,140.17,140.15,13.3833237]
[1741400417600,0.03,140.17,140.14,13.3833237]
[1741400417792,0.03,140.17,140.14,20.5190237]
[1741400418114,0.03,140.17,140.14,7.1357]
[1741400418320,0.03,140.17,140.13,13.4163237]
[1741400418516,0.03,140.17,140.14,13.3833237]
[1741400418907,0.03,140.17,140.15,13.3833237]
[1741400419598,0.03,140.17,140.16,20.5180237]
[1741400419917,0.03,140.17,140.14,13.3833237]
[1741400420417,0.03,140.17,140.15,13.3833237]
[1741400421212,0.03,140.17,140.14,20.5188237]
[1741400422319,0.03,140.17,140.15,13.3833237]
[1741400423219,0.03,140.17,140.14,20.5188237]
[1741400423419,0.03,140.17,140.14,7.1355]
[1741400423896,0.03,140.17,140.13,0.033]
[1741400424219,13.4133237,140.17,140.13,0.033]
[1741400425896,7.1643,140.17,140.13,0.033]
[1741400426107,13.3833237,140.14,140.13,0.033]
[1741400426526,21.2097237,140.14,140.13,0.033]
[1741400428140,28.3454237,140.14,140.13,0.033]
[1741400428302,99.7180185,140.14,140.03,27.3174237]
[1741400428631,13.3833237,140.09,140.03,20.1763237]
[1741400428825,13.3833237,140.09,140.04,13.3833237]
[1741400429023,13.3833237,140.1,140.04,13.3833237]
[1741400429424,13.3833237,140.11,140.05,13.3833237]
[1741400429929,13.3833237,140.1,140.04,13.3833237]
[1741400430108,20.5215237,140.1,140.04,13.3833237]
[1741400431329,13.3833237,140.11,140.05,13.3833237]
[1741400432127,20.5205237,140.11,140.05,20.5233237]
[1741400432430,13.3833237,140.1,140.05,20.5233237]
[1741400432936,13.3833237,140.1,140.05,7.14]
[1741400433104,20.5211237,140.1,140.05,20.5233237]
[1741400433608,20.5211237,140.1,140.05,13.3833237]
[1741400434225,13.3833237,140.08,140.03,0.033]
[1741400434529,12.3833237,140.08,140.03,0.033]
[1741400435031,12.3833237,140.08,140.03,13.4163237]
[1741400435214,7.1392,140.07,140.03,13.4163237]
[1741400435414,15.0196237,140.09,140.03,13.4163237]
[1741400435631,7.1389,140.08,140.04,13.3833237]
[1741400435928,8.7745,140.09,140.04,13.3833237]
[1741400436423,1.6363,140.09,140.06,13.3833237]
[1741400436624,22.1580237,140.09,140.03,13.4163237]
[1741400436831,13.3833237,140.08,140.03,0.033]
[1741400437415,20.5225237,140.08,140.03,0.033]
[1741400438325,13.3833237,140.06,140.03,0.033]
[1741400438522,13.3833237,140.04,140.03,0.033]
[1741400439438,13.3833237,140.05,140.03,0.033]
[1741400440234,15.0196237,140.04,140.03,0.033]
[1741400441519,22.1604237,140.04,140.03,0.033]
[1741400442909,15.0196237,140.04,140.03,0.033]
[1741400443134,1.6363,140.04,140.03,0.033]
[1741400444710,20.95502141,140.07,140.03,0.033]
[1741400444917,7.7988,140.08,140.03,20.98802141]
[1741400445115,7.7988,140.08,140.03,0.033]
[1741400445318,28.75382141,140.08,140.03,20.98802141]
[1741400446247,20.95502141,140.07,140.03,0.033]
[1741400446449,20.95502141,140.05,140.03,0.033]
[1741400447650,20.95502141,140.04,140.03,0.033]
[1741400448871,28.09582141,140.04,140.03,0.033]
[1741400450572,78.09582141,140.04,140.03,0.0001]
[1741400450876,79.72272141,140.04,140.01,0.0001]
[1741400451159,20.95502141,140.02,140.01,0.0001]
[1741400451856,20.95502141,140.01,139.98,0.033]
[1741400452056,20.95502141,139.99,139.98,0.033]
[1741400452567,28.09832141,139.99,139.98,0.033]
[1741400454672,20.95502141,139.99,139.98,0.033]
[1741400454869,28.09832141,139.99,139.98,0.033]
[1741400456846,34.85802141,140.0,139.98,0.033]
[1741400457048,20.95502141,139.99,139.98,0.033]
[1741400458857,28.09832141,139.99,139.98,0.033]
[1741400461044,20.95502141,139.96,139.94,0.033]
[1741400461244,20.95502141,139.95,139.94,0.033]
[1741400461967,20.95502141,139.96,139.94,0.033]
[1741400462742,20.95502141,139.95,139.94,0.033]
[1741400464976,28.10042141,139.95,139.94,0.033]
[1741400465159,20.95502141,139.95,139.94,0.033]
[1741400465562,20.95502141,139.96,139.94,0.033]
[1741400466070,20.95502141,139.95,139.94,0.033]
[1741400466973,28.10042141,139.95,139.94,0.033]
[1741400467552,7.1454,139.95,139.94,0.033]
[1741400467753,28.10042141,139.95,139.94,0.033]
[1741400467974,34.86042141,139.95,139.94,0.033]
[1741400473383,98.9499724,139.95,139.9,0.033]
[1741400473554,13.43621448,139.91,139.9,0.033]
[1741400474768,20.58361448,139.91,139.9,0.033]
[1741400474960,20.58361448,139.91,139.89,0.033]
[1741400475279,27.76903102,139.9,139.88,0.033]
[1741400475597,21.00903102,139.89,139.88,0.033]
[1741400476358,21.00903102,139.9,139.88,0.033]
[1741400476773,21.00903102,139.89,139.88,0.033]
[1741400476977,28.15743102,139.89,139.88,0.033]
[1741400479675,7.1484,139.89,139.88,0.033]
[1741400479878,28.15743102,139.89,139.88,0.033]
[1741400482567,7.1479,139.9,139.88,0.033]
[1741400482764,28.15693102,139.9,139.88,0.033]
[1741400483395,21.00903102,139.9,139.88,0.033]
[1741400483580,27.76903102,139.91,139.88,0.033]
[1741400483903,21.00903102,139.92,139.88,0.033]
[1741400484810,28.15553102,139.93,139.88,0.033]
[1741400485296,21.00903102,139.92,139.88,0.033]
[1741400485870,7.1465,139.93,139.88,0.033]
[1741400486073,21.00903102,139.92,139.88,0.033]
[1741400486274,28.15633102,139.92,139.88,0.033]
[1741400487906,21.00903102,139.91,139.88,0.033]
[1741400488092,21.00903102,139.89,139.88,0.033]
[1741400488276,28.15743102,139.89,139.88,0.033]
[1741400490301,21.00903102,139.9,139.88,0.033]
[1741400490686,21.00903102,139.91,139.88,0.033]
[1741400490889,21.00903102,139.92,139.88,0.033]
[1741400491098,0.03,139.89,139.88,0.033]
[1741400494315,21.03903102,139.89,139.88,0.033]
[1741400496385,28.18743102,139.89,139.88,0.033]
[1741400497217,20.62499812,139.89,139.88,0.033]
[1741400497885,38.49609812,139.89,139.86,0.033]
[1741400498185,13.44659812,139.87,139.86,0.033]
[1741400498381,20.59599812,139.87,139.86,0.033]
[1741400499320,28.16728906,139.87,139.86,0.033]
[1741400501324,21.01788906,139.87,139.86,0.033]
[1741400501621,0.03,139.89,139.86,0.033]
[1741400501813,21.01788906,139.87,139.86,0.033]
[1741400502721,28.16728906,139.87,139.86,0.033]
[1741400508917,50.69117812,139.87,139.84,0.033]
[1741400509103,21.01788906,139.85,139.84,0.033]
[1741400509307,27.77788906,139.85,139.84,0.033]
[1741400510031,34.92838906,139.85,139.84,0.033]
[1741400510911,34.92838906,139.85,139.84,0.0001]
[1741400515318,52.80458906,139.85,139.82,0.033]
[1741400515628,21.01788906,139.83,139.82,0.033]
[1741400517214,28.16938906,139.83,139.82,0.033]
[1741400519343,7.1515,139.83,139.82,0.033]
[1741400519522,20.60327508,139.83,139.82,0.033]
[1741400523947,20.60327508,139.83,139.82,0.0001]
[1741400524936,20.60327508,139.83,139.76,8.1953]
[1741400524937,20.60327508,139.83,139.81,0.0001]
[1741400525149,63.45177508,139.82,139.8,0.0001]
[1741400525441,74.4113754,139.81,139.8,0.0001]
[1741400525831,20.60427508,139.81,139.8,0.0001]
[1741400527045,13.45177508,139.81,139.8,0.0001]
[1741400528131,6.76,139.83,139.8,0.0001]
[1741400528132,20.21177508,139.83,139.8,0.0001]
[1741400528519,13.45177508,139.82,139.8,0.0001]
[1741400529044,13.45177508,139.83,139.8,0.0001]
[1741400529252,13.48177508,139.84,139.8,0.0001]
[1741400533453,0.03,139.84,139.8,13.45187508]
[1741400533957,0.03,139.84,139.8,0.0001]
[1741400535147,0.03,139.84,139.8,13.45187508]
[1741400535355,0.03,139.84,139.81,7.1525]
[1741400535556,0.03,139.84,139.82,7.7327]
[1741400537642,0.03,139.84,139.82,14.8847]
[1741400540170,0.03,139.84,139.82,142.3327]
[1741400541170,13.48177508,139.84,139.82,142.3327]
[1741400541345,0.03,139.84,139.82,142.3327]
[1741400542966,0.03,139.84,139.82,162.93647508]
[1741400543472,0.03,139.84,139.82,28.33647508]
[1741400544081,0.03,139.84,139.82,21.18447508]
[1741400544878,0.03,139.84,139.83,13.45177508]
[1741400545169,0.03,139.84,139.83,148.05177508]
[1741400545883,0.03,139.88,139.84,8.0449]
[1741400546056,0.03,139.88,139.87,13.45177508]
[1741400546259,0.03,139.88,139.87,148.05177508]
[1741400546473,0.03,139.88,139.87,155.20117508]
[1741400547478,0.03,139.89,139.87,170.05347508]
[1741400547782,0.03,139.89,139.88,13.45177508]
[1741400548492,0.03,139.89,139.88,155.20067508]
[1741400548673,11.14083711,139.97,139.93,13.45177508]
[1741400548871,11.14083711,139.97,139.94,13.45177508]
[1741400549374,11.14083711,139.97,139.93,20.97200007]
[1741400549892,7.174,139.98,139.93,20.97200007]
[1741400550094,0.03,139.98,139.93,20.97200007]
[1741400550259,0.03,139.98,139.94,20.97200007]
[1741400550659,0.03,139.98,139.95,20.97200007]
[1741400552774,0.03,139.98,139.95,28.11720007]
[1741400552998,21.00200007,139.98,139.93,142.7123]
[1741400553515,0.03,139.98,139.94,20.97200007]
[1741400553685,0.03,139.98,139.93,163.68430007]
[1741400554016,0.03,139.98,139.93,8.1123]
[1741400554223,0.03,139.98,139.95,20.97200007]
[1741400554384,21.00200007,139.98,139.93,8.1123]
[1741400554592,20.97200007,139.97,139.91,20.97200007]
[1741400554792,7.1448,139.96,139.91,20.97200007]
[1741400555023,21.00200007,139.98,139.92,20.97200007]
[1741400555226,7.1444,139.97,139.93,20.97200007]
[1741400555521,0.03,139.98,139.93,20.97200007]
[1741400555922,7.1739,139.98,139.93,20.97200007]
[1741400556524,7.1739,139.98,139.94,20.97200007]
[1741400556726,7.1739,139.98,139.93,20.97200007]
[1741400556926,7.1739,139.98,139.94,20.97200007]
[1741400557298,7.1739,139.98,139.93,20.97200007]
[1741400557715,0.03,139.98,139.94,20.97200007]
[1741400558409,0.03,139.98,139.91,141.7474]
[1741400558410,0.03,139.98,139.93,20.97200007]
[1741400558589,20.97200007,139.97,139.92,20.97200007]
[1741400559808,7.1443,139.97,139.92,20.97200007]
[1741400559999,28.11630007,139.97,139.92,20.97200007]
[1741400560503,20.97200007,139.96,139.91,20.97200007]
[1741400560700,20.97200007,139.92,139.87,22.62020007]
[1741400560898,20.97200007,139.93,139.88,0.033]
[1741400561098,20.97200007,139.94,139.88,21.00500007]
[1741400561905,28.11820007,139.94,139.88,21.00500007]
[1741400562317,28.11820007,139.94,139.88,28.15390007]
[1741400563400,28.11820007,139.94,139.88,21.00500007]
[1741400564195,20.97200007,139.93,139.88,0.033]
[1741400565536,7.1469,139.92,139.88,0.033]
[1741400566910,7.1469,139.92,139.88,21.00500007]
[1741400567524,20.97200007,139.93,139.88,0.033]
[1741400567698,28.11840007,139.93,139.88,0.033]
[1741400568411,7.1464,139.93,139.88,21.00500007]
[1741400569502,7.1464,139.93,139.89,20.97200007]
[1741400570728,22.62960007,139.95,139.89,20.97200007]
[1741400570927,7.1459,139.94,139.89,20.97200007]
[1741400571226,7.1459,139.94,139.89,13.43084329]
[1741400574936,20.57674329,139.94,139.88,0.033]
[1741400575140,7.1459,139.94,139.88,0.033]
[1741400575318,7.1459,139.94,139.89,13.43084329]
[1741400575534,20.57674329,139.94,139.88,13.46384329]
[1741400576049,20.57674329,139.94,139.88,148.06384329]
[1741400576343,20.57674329,139.94,139.88,155.21274329]
[1741400576546,7.1459,139.94,139.89,13.43084329]
[1741400581132,20.57674329,139.94,139.88,148.06384329]
[1741400581347,20.57674329,139.94,139.88,155.21274329]
[1741400581958,7.1459,139.94,139.89,13.43084329]
[1741400582123,20.57674329,139.94,139.88,155.21274329]
[1741400582423,20.57674329,139.94,139.89,13.43084329]
[1741400584445,20.60674329,139.94,139.89,13.43084329]
[1741400584673,7.1759,139.94,139.89,20.57914329]
[1741400586851,20.60674329,139.94,139.89,13.43084329]
[1741400588880,7.1759,139.94,139.89,20.57924329]
[1741400590381,7.1759,139.94,139.9,13.43084329]
[1741400590681,7.1759,139.94,139.88,141.7817]
[1741400590882,13.43084329,139.91,139.88,0.033]
[1741400591258,13.43084329,139.89,139.88,0.033]
[1741400593055,20.57924329,139.89,139.88,0.0001]
[1741400595181,6.101,139.88,139.81,0.033]
[1741400595385,13.43084329,139.83,139.81,0.033]
[1741400595574,13.43084329,139.84,139.81,0.033]
[1741400595897,13.43084329,139.83,139.81,0.033]
[1741400596053,13.43084329,139.82,139.81,0.033]
[1741400597179,20.58284329,139.82,139.81,0.033]
[1741400597358,33.52464329,139.82,139.81,0.0001]
[1741400598489,26.78464329,139.82,139.81,0.0001]
[1741400607904,13.43084329,139.77,139.76,0.033]
[1741400608478,20.58544329,139.77,139.76,0.033]
[1741400614108,13.43084329,139.77,139.76,0.033]
[1741400614313,20.58544329,139.77,139.76,0.033]
[1741400637481,20.58514329,139.78,139.76,0.033]
[1741400637766,13.43084329,139.78,139.76,0.033]
[1741400637985,13.43084329,139.77,139.76,0.033]
[1741400639552,7.1546,139.77,139.76,0.033]
[1741400641561,20.58504329,139.78,139.76,0.033]
[1741400641760,7.1542,139.78,139.76,0.033]
[1741400642181,20.58504329,139.78,139.76,0.033]
[1741400643968,0.03,139.8,139.76,0.033]
[1741400644294,13.43084329,139.79,139.76,0.033]
[1741400645290,13.46084329,139.8,139.76,0.033]
[1741400646063,20.58434329,139.79,139.76,0.033]
[1741400647600,7.1535,139.79,139.76,0.033]
[1741400648592,13.46084329,139.8,139.76,0.033]
[1741400648805,20.61404329,139.8,139.76,0.033]
[1741400651179,0.03,139.8,139.76,13.46384329]
[1741400653488,0.03,139.8,139.76,20.61884329]
[1741400654102,0.03,139.8,139.77,13.43084329]
[1741400654303,0.03,139.8,139.79,13.43084329]
[1741400655300,0.03,139.8,139.79,148.03084329]
[1741400655697,0.03,139.8,139.79,155.18434329]
[1741400656075,0.03,139.8,139.79,20.58434329]
[1741400659284,0.03,139.8,139.79,155.18434329]
[1741400659805,0.03,139.8,139.79,208.90771645]
[1741400660204,0.03,139.8,139.79,223.55871645]
[1741400661210,0.03,139.82,139.79,223.55871645]
[1741400661385,0.03,139.82,139.81,13.43084329]
[1741400661898,84.71192266,139.93,139.82,142.4414]
[1741400662102,24.5716804,139.92,139.86,13.43084329]
[1741400662307,13.43084329,139.91,139.85,13.43084329]
[1741400662802,20.57864329,139.91,139.85,13.43084329]
[1741400664601,13.43084329,139.9,139.85,13.43084329]
[1741400664905,13.43084329,139.9,139.84,13.43084329]
[1741400665807,13.43084329,139.88,139.82,155.87224329]
[1741400666103,13.43084329,139.86,139.82,7.8414]
[1741400667003,7.1505,139.85,139.82,7.8414]
[1741400669007,7.15,139.86,139.82,7.8414]
[1741400669506,7.15,139.86,139.82,21.27224329]
[1741400670299,7.1796,139.87,139.82,21.27224329]
[1741400670708,0.03,139.87,139.83,13.43084329]
[1741400671013,0.03,139.87,139.82,21.27224329]
[1741400672020,0.03,139.87,139.83,13.43084329]
[1741400673609,0.03,139.87,139.83,20.58224329]
[1741400673794,0.03,139.87,139.83,13.43084329]
[1741400675316,0.03,139.87,139.83,20.58224329]
[1741400679613,0.03,139.87,139.85,13.43084329]
[1741400679811,0.03,139.87,139.86,13.43084329]
[1741400681616,0.03,139.87,139.86,20.58084329]
[1741400681822,0.03,139.87,139.86,155.18084329]
[1741400683523,0.03,139.87,139.86,208.90421645]
[1741400683722,0.03,139.87,139.86,216.46871645]
[1741400689531,0.03,139.94,139.87,134.57]
[1741400689836,0.03,139.94,139.92,13.43084329]
[1741400690425,0.03,139.94,139.93,13.43084329]
[1741400693229,0.03,139.94,139.92,13.43084329]
[1741400694731,0.03,139.94,139.9,13.43084329]
[1741400695034,7.1759,139.94,139.9,13.43084329]
[1741400695332,7.1759,139.94,139.91,13.43084329]
[1741400696535,0.03,139.94,139.91,13.43084329]
[1741400698728,0.03,139.94,139.88,134.57]
[1741400698931,13.46084329,139.94,139.88,148.00084329]
[1741400699122,13.43084329,139.93,139.88,148.00084329]
[1741400699921,13.46084329,139.94,139.88,148.00084329]
[1741400700220,13.46084329,139.94,139.88,13.43084329]
[1741400700735,20.57724329,139.93,139.88,13.43084329]
[1741400701036,20.57724329,139.93,139.85,13.8704]
[1741400701037,13.43084329,139.91,139.85,148.00084329]
[1741400701243,13.43084329,139.89,139.83,13.43084329]
[1741400701623,13.43084329,139.88,139.82,141.29]
[1741400701840,13.43084329,139.87,139.82,134.57]
[1741400702314,1.6325,139.89,139.82,148.00084329]
[1741400702315,13.43084329,139.88,139.82,148.00084329]
[1741400702713,13.43084329,139.88,139.83,13.43084329]
[1741400702937,1.6325,139.89,139.84,13.43084329]
[1741400703130,13.8675,139.91,139.86,13.43084329]
[1741400703324,13.43084329,139.9,139.85,13.43084329]
[1741400703821,13.43084329,139.88,139.82,148.00084329]
[1741400704028,13.43084329,139.88,139.82,13.43084329]
[1741400704339,13.43084329,139.9,139.85,13.43084329]
[1741400704520,27.29834329,139.91,139.86,13.43084329]
[1741400705940,27.29834329,139.91,139.85,13.43084329]
[1741400706523,13.43084329,139.9,139.85,13.43084329]
[1741400707739,20.57894329,139.9,139.85,13.43084329]
[1741400707921,20.57874329,139.9,139.85,13.46384329]
[1741400708122,20.18084329,139.91,139.85,13.46384329]
[1741400708328,6.75,139.91,139.86,13.43084329]
[1741400708530,6.75,139.91,139.88,13.43084329]
[1741400708742,0.03,139.91,139.88,13.43084329]
[1741400709824,0.03,139.91,139.87,7.1492]
[1741400710046,0.03,139.91,139.87,13.43084329]
[1741400711229,0.03,139.91,139.87,20.58014329]
[1741400711458,0.03,139.91,139.88,13.43084329]
[1741400712243,0.03,139.91,139.9,13.43084329]
[1741400713029,0.03,139.91,139.9,20.57874329]
[1741400714046,0.03,139.91,139.9,155.14874329]
[1741400716228,0.03,139.91,139.9,173.79839215]
[1741400724251,0.03,139.91,139.9,13.43084329]
[1741400724456,0.03,139.91,139.9,20.57874329]
[1741400726954,0.03,139.91,139.9,13.43084329]
[1741400727156,0.03,139.91,139.89,13.43084329]
[1741400727336,0.03,139.91,139.88,13.43084329]
[1741400727950,0.03,139.91,139.9,13.43084329]
[1741400729967,0.03,139.91,139.89,13.43084329]
[1741400732555,0.03,139.91,139.89,20.57924329]
[1741400735058,0.03,139.91,139.9,13.43084329]
[1741400736377,0.03,139.91,139.9,20.57874329]
[1741400736568,0.03,139.91,139.9,13.43084329]
[1741400736760,0.03,139.91,139.9,20.57874329]
[1741400743475,0.03,139.91,139.9,7.1479]
[1741400743682,0.03,139.91,139.87,0.033]
[1741400743977,13.46084329,139.91,139.87,0.033]
[1741400745187,20.60864329,139.91,139.87,0.033]
[1741400746189,13.43084329,139.89,139.87,0.033]
[1741400746362,20.13084329,139.88,139.85,0.033]
[1741400746682,68.71991645,139.86,139.85,0.033]
[1741400746882,75.12001645,139.86,139.85,0.033]
[1741400747061,28.54664329,139.86,139.85,0.033]
[1741400751566,118.79466531,139.86,139.78,0.033]
[1741400751880,13.43084329,139.82,139.78,0.033]
[1741400752969,20.58284329,139.82,139.78,0.033]
[1741400755178,20.13084329,139.83,139.78,0.033]
[1741400756572,27.28244329,139.83,139.78,0.033]
[1741400757275,13.43084329,139.82,139.78,0.033]
[1741400758691,20.58284329,139.82,139.78,0.033]
[1741400760772,13.43084329,139.82,139.78,0.033]
[1741400761105,20.58284329,139.82,139.78,0.033]
[1741400762798,18.64964886,139.8,139.78,0.033]
[1741400762976,13.43084329,139.79,139.78,0.033]
[1741400763808,13.43084329,139.8,139.78,0.033]
[1741400764210,13.43084329,139.79,139.78,0.033]
[1741400765000,20.58434329,139.79,139.78,0.033]
[1741400766511,13.43084329,139.79,139.78,0.033]
[1741400766816,20.58404329,139.8,139.78,0.033]
[1741400767015,13.43084329,139.79,139.78,0.033]
[1741400768422,20.58404329,139.8,139.78,0.033]
[1741400769623,13.43084329,139.79,139.78,0.033]
[1741400771323,39.23399215,139.79,139.78,0.033]
[1741400771503,18.64964886,139.78,139.76,0.033]
[1741400771704,20.13084329,139.77,139.76,0.033]
[1741400772803,38.78049215,139.77,139.76,0.033]
[1741400773609,45.93509215,139.77,139.76,0.033]
[1741400773811,27.28544329,139.77,139.76,0.033]
[1741400776916,45.93509215,139.77,139.76,0.0001]
[1741400777123,47.47519215,139.77,139.76,0.0001]
[1741400778218,47.47519215,139.77,139.73,0.033]
[1741400778219,18.64964886,139.76,139.73,0.033]
[1741400778417,13.43084329,139.74,139.73,0.033]
[1741400779221,32.08049215,139.74,139.73,0.033]
[1741400779598,13.43084329,139.74,139.73,0.033]
[1741400780309,20.58694329,139.74,139.73,0.033]